bitfinex/quotes_BTCUSD_20251202
["timestamp","ask_amount","ask_price","bid_price","bid_amount"]
[1764686908836,0.22420267,89205.0,89197.0,0.02242227]
[1764686909141,0.01121,89206.0,89189.0,0.323]
[1764686909293,0.01121038,89203.0,89191.0,0.01121189]
[1764686909495,0.00037962,89210.0,89189.0,0.323]
[1764686909496,0.23544664,89193.0,89189.0,0.323]
[1764686909683,0.01121126,89196.0,89189.0,0.323]
[1764686909885,0.01120988,89207.0,89193.0,0.2242308]
[1764686910085,0.49446248,89236.0,89207.0,0.01120988]
[1764686910086,0.09228,89223.0,89207.0,0.01120988]
[1764686910341,0.01120887,89215.0,89205.0,0.01121013]
[1764686910550,0.0182,89221.0,89203.0,0.01121038]
[1764686910746,0.0182,89221.0,89209.0,0.22419262]
[1764686910975,0.06252299,89227.0,89209.0,0.22419262]
[1764686910976,0.01120636,89235.0,89209.0,0.22419262]
[1764686911176,1e-08,89251.0,89209.0,2.64714262]
[1764686911177,0.04621,89245.0,89209.0,2.64714262]
[1764686911301,0.01120523,89244.0,89209.0,2.64714262]
[1764686911501,0.01120598,89238.0,89209.0,3.04714262]
[1764686911785,0.01120623,89236.0,89209.0,2.94719262]
[1764686912074,0.09275,89239.0,89209.0,0.4]
[1764686912075,0.01120824,89220.0,89209.0,0.4]
[1764686912365,0.02940749,89226.0,89209.0,0.4]
[1764686912366,0.09275,89239.0,89209.0,0.4]
[1764686912598,0.10911298,89263.0,89209.0,2.82295]
[1764686912599,0.0182,89234.0,89209.0,2.82295]
[1764686912804,0.15449179,89254.0,89209.0,2.82295]
[1764686912805,0.06174179,89254.0,89209.0,2.82295]
[1764686912977,0.01120498,89246.0,89209.0,2.82295]
[1764686913277,0.06174179,89254.0,89209.0,2.82295]
[1764686913434,0.01120498,89246.0,89209.0,2.82295]
[1764686913649,0.22408924,89251.0,89209.0,2.82295]
[1764686913850,1e-08,89251.0,89209.0,2.82295]
[1764686914468,1e-08,89210.0,89209.0,2.82295]
[1764686914713,1e-08,89210.0,89209.0,2.82495]
[1764686914915,1e-08,89210.0,89209.0,2.84315]
[1764686915111,1e-08,89210.0,89209.0,2.84115]
[1764686915531,1e-08,89210.0,89209.0,0.49995]
[1764686915736,1e-08,89210.0,89202.0,0.00024285]
[1764686915737,0.01121013,89205.0,89202.0,0.00024285]
[1764686915914,0.00200001,89210.0,89202.0,0.00024285]
[1764686916111,0.00200001,89210.0,89202.0,0.01145336]
[1764686916323,0.00200001,89210.0,89203.0,0.01121038]
[1764686916522,0.00200001,89210.0,89202.0,0.00024285]
[1764686916952,0.01120963,89209.0,89202.0,0.40024285]
[1764686917233,0.01120951,89210.0,89202.0,0.40024285]
[1764686917457,1e-08,89210.0,89202.0,0.41145336]
[1764686917661,1e-08,89210.0,89202.0,0.40024285]
[1764686917865,1e-08,89210.0,89202.0,0.41145336]
[1764686918066,1e-08,89210.0,89204.0,0.01121025]
[1764686918274,1e-08,89210.0,89209.0,0.22419262]
[1764686918491,0.00200001,89210.0,89209.0,0.22419262]
[1764686918689,0.00200001,89210.0,89209.0,0.64517262]
[1764686918820,0.00200001,89210.0,89209.0,0.323]
[1764686918821,1e-08,89210.0,89209.0,0.323]
[1764686919228,1e-08,89210.0,89209.0,0.42098]
[1764686920086,1e-08,89210.0,89209.0,2.44556]
[1764686920257,1e-08,89210.0,89209.0,2.44656]
[1764686921276,0.06174179,89254.0,89241.0,0.22411223]
[1764686921477,0.06174179,89254.0,89236.0,0.01120623]
[1764686921478,0.0112046,89249.0,89236.0,0.01120623]
[1764686921708,0.00173796,89248.0,89240.0,0.22411348]
[1764686921903,0.01294269,89248.0,89239.0,0.01120586]
[1764686922103,0.01294269,89248.0,89237.0,0.01120611]
[1764686922330,0.00173796,89248.0,89245.0,0.23530468]
[1764686922534,0.00173796,89248.0,89246.0,0.62409874]
[1764686923279,0.00173796,89248.0,89246.0,0.4]
[1764686923650,0.00173796,89248.0,89246.0,0.62409791]
[1764686923869,0.00173796,89248.0,89246.0,0.4]
[1764686924076,0.22583374,89248.0,89246.0,0.4]
[1764686924558,0.22583374,89248.0,89240.0,0.001]
[1764686924559,0.28663271,89242.0,89240.0,0.001]
[1764686924771,0.08072299,89241.0,89240.0,0.001]
[1764686924977,0.08072299,89241.0,89210.0,0.09999999]
[1764686924978,0.2241876,89211.0,89210.0,0.09999999]
[1764686925403,0.38239059,89211.0,89210.0,0.09999999]
[1764686926036,0.3198676,89211.0,89210.0,0.09999999]
[1764686926247,0.0182,89211.0,89210.0,0.09999999]
[1764686926447,0.11388,89211.0,89210.0,0.10099999]
[1764686926659,0.0182,89211.0,89210.0,0.10099999]
[1764686926863,0.09568,89223.0,89210.0,0.10099999]
[1764686926864,0.04003,89227.0,89219.0,0.01120837]
[1764686927066,0.00162406,89248.0,89214.0,0.011209]
[1764686927067,0.01120498,89246.0,89233.0,0.01120661]
[1764686927267,0.01120498,89246.0,89217.0,0.01120862]
[1764686927268,0.01120573,89240.0,89217.0,0.01120862]
[1764686927477,0.0182,89245.0,89214.0,0.022418]
[1764686927478,0.2353121,89244.0,89230.0,0.01120699]
[1764686927630,0.1256551,89245.0,89231.0,0.01120686]
[1764686927828,0.01120573,89240.0,89225.0,0.01120762]
[1764686928033,0.01120636,89235.0,89225.0,0.01120762]
[1764686928242,0.01120674,89232.0,89221.0,0.22416099]
[1764686928656,0.01120749,89226.0,89211.0,0.323]
[1764686928866,0.22418705,89212.0,89210.0,0.10099999]
[1764686929066,0.22418632,89212.0,89210.0,0.09999999]
[1764686929190,0.01120912,89213.0,89210.0,0.09999999]
[1764686929386,0.22418715,89212.0,89210.0,0.09999999]
[1764686929591,0.31986715,89212.0,89210.0,0.09999999]
[1764686930003,0.09568,89211.0,89210.0,0.09999999]
[1764686930411,0.0182,89211.0,89210.0,0.10199999]
[1764686930878,0.11388,89211.0,89210.0,0.10199999]
[1764686931088,0.17640299,89211.0,89210.0,0.10199999]
[1764686931299,0.17640299,89211.0,89166.0,0.4]
[1764686931300,0.28673069,89203.0,89170.0,0.02183909]
[1764686931502,0.28673069,89203.0,89166.0,0.4]
[1764686931503,0.01121428,89172.0,89166.0,0.4]
[1764686931707,0.0112134,89179.0,89166.0,0.4]
[1764686931708,0.0182,89171.0,89167.0,0.01121491]
[1764686931925,0.06252299,89191.0,89167.0,0.01121491]
[1764686931926,0.04646,89180.0,89168.0,0.22429386]
[1764686932138,0.01121264,89185.0,89168.0,0.22429386]
[1764686932139,0.0182,89177.0,89172.0,0.01121428]
[1764686932318,0.0182,89177.0,89174.0,0.01121403]
[1764686932532,0.08072299,89178.0,89166.0,0.40037962]
[1764686932743,0.04906,89167.0,89166.0,0.00037962]
[1764686933163,0.23551044,89169.0,89166.0,0.00037962]
[1764686933365,0.0112139,89175.0,89168.0,0.001]
[1764686933567,0.0112144,89171.0,89168.0,0.001]
[1764686933806,0.01121465,89169.0,89166.0,0.00037962]
[1764686934223,0.31948736,89168.0,89166.0,0.00037962]
[1764686934375,0.0182,89168.0,89166.0,0.00037962]
[1764686934973,0.05675134,89273.0,89166.0,0.00037962]
[1764686934974,0.01121139,89195.0,89183.0,0.23546851]
[1764686935232,0.31941683,89196.0,89183.0,0.23546851]
[1764686935233,0.0182,89193.0,89187.0,0.01121239]
[1764686935374,0.0182,89193.0,89185.0,0.2354654]
[1764686935375,0.0182,89193.0,89185.0,0.01121264]
[1764686935575,0.0182,89193.0,89183.0,0.01121289]
[1764686935576,0.0182,89193.0,89184.0,0.01121277]
[1764686935798,0.01121214,89189.0,89181.0,0.01121315]
[1764686936006,0.0182,89190.0,89181.0,0.22426229]
[1764686936211,0.05862113,89197.0,89181.0,0.22426229]
[1764686936212,0.04741,89197.0,89188.0,0.01121227]
[1764686936379,0.0182,89196.0,89189.0,0.01121214]
[1764686936587,0.0182,89196.0,89193.0,0.01121164]
[1764686936781,0.0182,89196.0,89191.0,0.01121189]
[1764686937066,0.01121151,89194.0,89184.0,0.01121277]
[1764686937350,0.01121214,89189.0,89186.0,0.022488]
[1764686937481,0.01121214,89189.0,89185.0,0.022488]
[1764686937482,0.01121252,89186.0,89185.0,0.022488]
[1764686937683,0.01121176,89192.0,89191.0,0.03369989]
[1764686937684,0.0182,89192.0,89191.0,0.03369989]
[1764686937887,0.01120963,89209.0,89207.0,0.022488]
[1764686938203,0.01120887,89215.0,89207.0,0.022488]
[1764686938204,0.06466,89208.0,89207.0,0.022488]
[1764686938628,0.04646,89208.0,89207.0,0.022488]
[1764686938788,0.04646,89208.0,89201.0,0.22421153]
[1764686938789,0.09168,89226.0,89225.0,0.022488]
[1764686939005,0.10988,89226.0,89225.0,0.022488]
[1764686939520,0.09168,89226.0,89225.0,0.022488]
[1764686939698,0.0112085,89218.0,89208.0,0.01120975]
[1764686939921,0.01120799,89222.0,89221.0,0.022488]
[1764686940115,0.01120799,89222.0,89209.0,0.4]
[1764686940116,0.23537059,89221.0,89220.0,0.022488]
[1764686940319,0.09168,89221.0,89220.0,0.022488]
[1764686940524,0.09168,89221.0,89208.0,0.00011405]
[1764686940525,0.22419011,89210.0,89208.0,0.00011405]
[1764686940736,0.22419011,89210.0,89208.0,0.02260205]
[1764686940737,0.0182,89209.0,89208.0,0.02260205]
[1764686940954,0.09168,89224.0,89209.0,0.01120963]
[1764686941143,0.04023293,89287.0,89209.0,0.01120963]
[1764686941144,0.07294576,89254.0,89234.0,0.01120649]
[1764686941337,0.06174179,89254.0,89239.0,0.386158]
[1764686941554,0.06174179,89254.0,89239.0,2.37517]
[1764686941853,0.06174179,89254.0,89239.0,2.495638]
[1764686942037,0.06174179,89254.0,89239.0,2.895638]
[1764686942194,0.06174179,89254.0,89239.0,0.4]
[1764686942398,0.06174179,89254.0,89239.0,0.422488]
[1764686942597,0.09725425,89240.0,89239.0,0.422488]
[1764686942864,0.09725425,89240.0,89239.0,0.4]
[1764686942865,0.32136899,89240.0,89239.0,0.4]
[1764686943067,0.38489198,89240.0,89239.0,0.422488]
[1764686943269,0.06514724,89240.0,89239.0,0.4]
[1764686943476,0.00262425,89240.0,89239.0,0.422488]
[1764686943706,0.00162425,89240.0,89239.0,0.422488]
[1764686944037,0.00162425,89240.0,89239.0,0.64654546]
[1764686944570,0.00162425,89240.0,89239.0,1.06752546]
[1764686945153,0.00162425,89240.0,89239.0,0.42242821]
[1764686945354,0.00162425,89240.0,89239.0,0.42342821]
[1764686945915,0.00162425,89240.0,89239.0,0.42242821]
[1764686946333,0.00462425,89240.0,89239.0,0.42242821]
[1764686946948,0.00162425,89240.0,89239.0,0.42242821]
[1764686947369,0.00162425,89240.0,89239.0,0.42342821]
[1764686948441,0.00162425,89240.0,89239.0,0.40094021]
[1764686948644,0.00162425,89240.0,89239.0,0.42242821]
[1764686948855,0.09725425,89240.0,89239.0,0.42242821]
[1764686949057,0.09725425,89240.0,89239.0,0.42342821]
[1764686949058,0.00162425,89240.0,89239.0,0.42342821]
[1764686949256,0.09725425,89240.0,89239.0,0.42342821]
[1764686949456,0.09725425,89240.0,89239.0,0.022488]
[1764686949863,0.09725425,89240.0,89239.0,0.023488]
[1764686950215,0.09725425,89240.0,89218.0,0.23537616]
[1764686950216,0.22415493,89224.0,89182.0,0.09509]
[1764686950343,0.23540753,89207.0,89206.0,0.022488]
[1764686950538,0.23540753,89207.0,89194.0,0.00062251]
[1764686950539,0.28244753,89207.0,89194.0,0.00062251]
[1764686950788,0.01121113,89197.0,89196.0,0.022488]
[1764686950993,0.01121038,89203.0,89194.0,0.00062251]
[1764686950994,0.01121025,89204.0,89202.0,0.022488]
[1764686951220,2.80083553,89260.0,89194.0,0.00062251]
[1764686951221,0.01120812,89221.0,89197.0,0.01121113]
[1764686951406,0.30484969,89220.0,89219.0,0.022488]
[1764686951580,0.22416498,89222.0,89194.0,0.02304554]
[1764686951581,0.28668295,89222.0,89221.0,0.022488]
[1764686951780,0.05824787,89223.0,89222.0,0.022488]
[1764686951781,0.04704,89223.0,89222.0,0.022488]
[1764686951981,0.09831,89229.0,89219.0,0.01120837]
[1764686951982,0.000345,89282.0,89236.0,0.022488]
[1764686951983,0.01816,89237.0,89236.0,0.022488]
[1764686952198,0.23529341,89251.0,89239.0,0.24660525]
[1764686952574,0.0182,89246.0,89239.0,0.24660525]
[1764686952778,1.25087048,89250.0,89239.0,0.24660525]
[1764686952779,0.23530357,89247.0,89239.0,0.022488]
[1764686952981,0.01282998,89240.0,89220.0,0.01120824]
[1764686953180,0.01282998,89240.0,89215.0,0.0182]
[1764686953181,0.00162425,89240.0,89239.0,0.02241034]
[1764686953331,0.00162425,89240.0,89232.0,0.22413258]
[1764686953534,0.00162425,89240.0,89239.0,0.42241034]
[1764686954113,0.32404899,89240.0,89239.0,0.42241034]
[1764686954472,0.22573899,89240.0,89239.0,0.4223]
[1764686955032,0.01120699,89230.0,89217.0,0.01120862]
[1764686955246,0.01120674,89232.0,89231.0,0.02241034]
[1764686955451,0.01816,89233.0,89232.0,0.02241034]
[1764686956108,0.01816,89233.0,89231.0,0.4]
[1764686956109,0.11647,89233.0,89231.0,0.4]
[1764686956359,0.11647,89233.0,89203.0,0.01816]
[1764686956360,0.22416164,89222.0,89216.0,0.02242624]
[1764686956592,0.22416164,89222.0,89195.0,0.323]
[1764686956593,0.02936812,89221.0,89204.0,0.01121025]
[1764686956774,0.06252299,89232.0,89216.0,0.4]
[1764686956775,0.01816,89220.0,89216.0,0.4]
[1764686957058,0.01816,89219.0,89218.0,0.02242624]
[1764686957196,0.01120774,89224.0,89218.0,0.02242624]
[1764686957197,0.01816,89227.0,89226.0,0.02242624]
[1764686957418,0.01120586,89239.0,89226.0,0.02242624]
[1764686957419,0.01120548,89242.0,89239.0,0.02242624]
[1764686957618,0.01978425,89240.0,89239.0,0.02242624]
[1764686957825,0.00162425,89240.0,89239.0,0.02242624]
[1764686958025,0.00162425,89240.0,89239.0,0.24654349]
[1764686959328,0.00162425,89240.0,89239.0,0.56954349]
[1764686959528,0.00162425,89240.0,89239.0,2.66463349]
[1764686959693,0.00162425,89240.0,89239.0,2.66563349]
[1764686959893,0.00162425,89240.0,89239.0,2.68379349]
[1764686960206,0.00162425,89240.0,89239.0,3.08279349]
[1764686960481,1e-08,89240.0,89239.0,3.08279349]
[1764686960715,1e-08,89251.0,89249.0,2.56951838]
[1764686960716,0.72691236,89250.0,89249.0,2.56951838]
[1764686960863,0.14832318,89250.0,89249.0,2.58101838]
[1764686961067,0.06290298,89263.0,89249.0,2.58101838]
[1764686961068,0.06290298,89263.0,89257.0,0.0112036]
[1764686961270,0.06290298,89263.0,89262.0,2.56948575]
[1764686961650,0.06360054,89263.0,89262.0,2.96948575]
[1764686962473,0.06360054,89263.0,89262.0,2.96939767]
[1764686963065,0.06360054,89263.0,89262.0,0.42242624]
[1764686963463,0.18107054,89263.0,89262.0,0.4]
[1764686963666,0.18107054,89263.0,89165.0,0.05614316]
[1764686963667,0.01120397,89254.0,89253.0,0.02242624]
[1764686963881,0.01120397,89254.0,89229.0,0.01816]
[1764686963882,0.06252299,89250.0,89245.0,0.02242624]
[1764686964088,0.01816,89249.0,89235.0,0.0336326]
[1764686964310,0.22409974,89246.0,89235.0,0.01120636]
[1764686964522,0.01120473,89248.0,89239.0,0.01120586]
[1764686964742,0.22417965,89254.0,89253.0,0.02242624]
[1764686964743,9.786e-05,89254.0,89253.0,0.02242624]
[1764686964921,9.786e-05,89254.0,89253.0,0.42242624]
[1764686965789,9.786e-05,89254.0,89253.0,2.74542624]
[1764686966440,9.786e-05,89254.0,89253.0,2.74642624]
[1764686966775,9.786e-05,89254.0,89253.0,2.74542624]
[1764686967262,9.786e-05,89254.0,89253.0,0.74542624]
[1764686967494,9.786e-05,89254.0,89248.0,0.22409465]
[1764686967496,9.786e-05,89254.0,89203.0,2.0]
[1764686967497,0.01120862,89217.0,89203.0,2.0]
[1764686967757,0.01120963,89209.0,89203.0,0.02242624]
[1764686967958,0.01120912,89213.0,89189.0,0.02944]
[1764686967959,0.01121013,89205.0,89202.0,0.00150776]
[1764686968172,0.23539433,89212.0,89202.0,0.00150776]
[1764686968173,0.01120938,89211.0,89210.0,0.02242624]
[1764686968401,0.01120812,89221.0,89212.0,0.02242624]
[1764686968604,0.06252299,89219.0,89218.0,0.02242624]
[1764686969118,0.23547067,89221.0,89218.0,0.02242624]
[1764686969119,9.778e-05,89221.0,89220.0,0.02242624]
[1764686969560,9.778e-05,89221.0,89220.0,0.02243024]
[1764686969784,9.778e-05,89221.0,89220.0,0.22416498]
[1764686969989,9.778e-05,89221.0,89220.0,0.24659522]
[1764686970602,9.778e-05,89221.0,89205.0,0.09509]
[1764686970603,0.00209778,89221.0,89211.0,0.2353951]
[1764686970804,0.00209778,89221.0,89220.0,0.02243024]
[1764686971042,0.00209778,89221.0,89220.0,0.24659522]
[1764686971406,0.00209778,89221.0,89220.0,0.34168522]
[1764686971589,0.00209778,89221.0,89220.0,0.24659522]
[1764686971743,0.00209778,89221.0,89220.0,0.246623]
[1764686971950,9.778e-05,89221.0,89220.0,0.32224353]
[1764686972492,9.778e-05,89221.0,89220.0,0.32324353]
[1764686972708,9.778e-05,89221.0,89220.0,0.07662053]
[1764686972990,9.778e-05,89221.0,89220.0,0.02345802]
[1764686973166,9.778e-05,89221.0,89220.0,0.02339541]
[1764686973372,9.778e-05,89221.0,89220.0,0.02245802]
[1764686973756,9.778e-05,89221.0,89220.0,0.001]
[1764686973982,9.778e-05,89221.0,89220.0,0.02345802]
[1764686974295,9.778e-05,89221.0,89220.0,0.121595]
[1764686974605,9.778e-05,89221.0,89220.0,0.02345802]
[1764686974803,9.778e-05,89221.0,89220.0,0.02338547]
[1764686974979,9.778e-05,89221.0,89220.0,0.02245802]
[1764686975182,9.778e-05,89221.0,89220.0,0.02345802]
[1764686975569,9.778e-05,89221.0,89220.0,0.12313802]
[1764686975770,9.778e-05,89221.0,89220.0,0.21162628]
[1764686975970,9.778e-05,89221.0,89220.0,0.21062628]
[1764686976177,9.778e-05,89221.0,89220.0,0.35588046]
[1764686976405,9.778e-05,89221.0,89220.0,0.33511126]
[1764686976986,9.778e-05,89221.0,89220.0,0.11194628]
[1764686977420,0.09236778,89221.0,89220.0,0.02345802]
[1764686977617,9.778e-05,89221.0,89220.0,0.02345802]
[1764686977838,9.778e-05,89221.0,89220.0,0.27003949]
[1764686978049,9.778e-05,89221.0,89220.0,0.247623]
[1764686978255,9.778e-05,89221.0,89220.0,0.246623]
[1764686978479,9.778e-05,89221.0,89220.0,0.43847824]
[1764686978673,9.778e-05,89221.0,89220.0,2.74106175]
[1764686979409,0.00024267,89248.0,89247.0,0.24655518]
[1764686979614,0.00024267,89248.0,89239.0,0.01120586]
[1764686979615,0.05314565,89263.0,89262.0,0.02245802]
[1764686979816,0.05314565,89263.0,89262.0,0.24666707]
[1764686980040,0.05314565,89263.0,89262.0,0.31838732]
[1764686980730,0.05314565,89263.0,89262.0,0.29589366]
[1764686980935,0.05314565,89263.0,89262.0,0.73908732]
[1764686981365,0.06406417,89272.0,89271.0,2.56953058]
[1764686981577,0.06406417,89272.0,89271.0,2.68475654]
[1764686982501,0.06406417,89272.0,89271.0,0.68475654]
[1764686982712,0.06406417,89272.0,89271.0,0.13771962]
[1764686982929,0.06506417,89272.0,89271.0,0.02249366]
[1764686983285,0.06506417,89272.0,89271.0,0.24653058]
[1764686983486,0.06406417,89272.0,89271.0,0.24653058]
[1764686983697,0.06406417,89272.0,89271.0,0.56953058]
[1764686984222,0.06406417,89272.0,89271.0,2.56953058]
[1764686984546,0.06406417,89272.0,89271.0,2.80069654]
[1764686985398,0.06406417,89272.0,89271.0,2.80269654]
[1764686986006,0.06406417,89272.0,89271.0,2.80069654]
[1764686986212,0.06506417,89272.0,89271.0,2.80069654]
[1764686986799,0.06406417,89272.0,89271.0,2.68475654]
[1764686987000,0.06406417,89272.0,89271.0,2.70299654]
[1764686987201,0.06406417,89272.0,89271.0,2.36175654]
[1764686987532,0.06406417,89272.0,89271.0,0.36175654]
[1764686987744,0.06406417,89272.0,89271.0,0.13771962]
[1764686987880,1e-08,89272.0,89271.0,2.34423058]
[1764686988081,1e-08,89272.0,89271.0,2.68543058]
[1764686989113,1e-08,89272.0,89271.0,2.56953058]
[1764686989329,1e-08,89272.0,89270.0,0.2240393]
[1764686989492,1e-08,89272.0,89271.0,0.02249366]
[1764686989946,0.00200001,89272.0,89271.0,0.02249366]
[1764686991220,1e-08,89272.0,89271.0,2.12019366]
[1764686991410,1e-08,89272.0,89271.0,2.44319366]
[1764686991710,1e-08,89272.0,89271.0,2.44419366]
[1764686991917,1e-08,89272.0,89271.0,2.55941962]
[1764686992053,1e-08,89272.0,89271.0,2.55841962]
[1764686992616,0.00100001,89272.0,89271.0,2.55841962]
[1764686993226,1e-08,89272.0,89271.0,2.55841962]
[1764686993785,1e-08,89272.0,89271.0,2.46071962]
[1764686994422,1e-08,89272.0,89271.0,2.70641962]
[1764686994587,1e-08,89272.0,89271.0,0.13771962]
[1764686995024,1e-08,89272.0,89271.0,2.25782331]
[1764686995260,1e-08,89272.0,89271.0,2.23541962]
[1764686995480,1e-08,89272.0,89271.0,2.55841962]
[1764686996020,0.00100001,89272.0,89271.0,2.55841962]
[1764686997470,1e-08,89272.0,89271.0,2.55841962]
[1764686998101,0.00200001,89272.0,89271.0,2.55841962]
[1764686998506,0.00200001,89272.0,89271.0,2.46071962]
[1764686998909,0.00200001,89272.0,89271.0,2.55841962]
[1764686999135,0.00200001,89272.0,89271.0,2.46071962]
[1764686999340,1e-08,89272.0,89271.0,2.55841962]
[1764686999536,0.0678194,89290.0,89271.0,2.55841962]
[1764686999537,0.0678194,89290.0,89289.0,2.56948541]
[1764686999741,0.0678194,89290.0,89289.0,2.58768541]
[1764686999975,0.0678194,89290.0,89289.0,2.68538541]
[1764687000800,0.06793341,89290.0,89289.0,2.68538541]
[1764687001002,0.13999,89325.0,89289.0,2.68538541]
[1764687001004,0.04561,89349.0,89325.0,0.56939514]
[1764687001334,0.0495,89361.0,89325.0,0.56939514]
[1764687001335,0.07141121,89326.0,89325.0,0.56939514]
[1764687001544,0.07141121,89326.0,89325.0,0.54690148]
[1764687001776,0.07141121,89326.0,89325.0,0.02249366]
[1764687001977,0.07141121,89326.0,89320.0,0.0111957]
[1764687001978,0.16368121,89326.0,89324.0,0.2239015]
[1764687002148,0.07141121,89326.0,89325.0,0.07063289]
[1764687002766,0.07141121,89326.0,89325.0,0.07263289]
[1764687003325,0.07141121,89326.0,89325.0,2.07263289]
[1764687003524,0.07141121,89326.0,89325.0,0.07263289]
[1764687003752,0.07141121,89326.0,89325.0,0.07063289]
[1764687004115,0.16368121,89326.0,89325.0,0.02349366]
[1764687004552,0.07141121,89326.0,89325.0,0.02349366]
[1764687004775,0.07141121,89326.0,89325.0,0.02249366]
[1764687004994,0.07141121,89326.0,89325.0,0.02449366]
[1764687005401,0.07141121,89326.0,89320.0,0.0111957]
[1764687005402,0.07141121,89326.0,89250.0,0.49408924]
[1764687005403,0.0111982,89300.0,89250.0,0.49408924]
[1764687005644,0.0111982,89300.0,89232.0,0.04486]
[1764687005645,0.01120197,89270.0,89255.0,0.01120385]
[1764687005861,0.06252299,89289.0,89252.0,0.22407959]
[1764687005863,0.10910299,89253.0,89252.0,0.03369789]
[1764687006067,0.01120234,89267.0,89252.0,0.03369789]
[1764687006068,0.01120146,89274.0,89259.0,0.01120335]
[1764687006281,0.06252299,89272.0,89271.0,0.02249366]
[1764687006493,0.01120259,89265.0,89262.0,0.02249366]
[1764687006700,0.04658,89263.0,89262.0,0.02260767]
[1764687006904,0.12730299,89263.0,89262.0,0.02260767]
[1764687007107,0.22200299,89263.0,89262.0,0.09656986]
[1764687007334,0.22200299,89263.0,89262.0,0.00011401]
[1764687007537,0.22200299,89263.0,89252.0,0.28734005]
[1764687007538,0.22200299,89263.0,89252.0,0.00162337]
[1764687007539,0.06252299,89262.0,89252.0,0.00162337]
[1764687007745,0.06252299,89262.0,89200.0,0.49408924]
[1764687007746,0.01120787,89223.0,89208.0,0.02249366]
[1764687007943,0.323,89252.0,89208.0,0.02249366]
[1764687007945,0.01120938,89211.0,89208.0,0.00037962]
[1764687008163,0.10910299,89209.0,89208.0,0.00037962]
[1764687008367,0.10910299,89209.0,89208.0,0.02287328]
[1764687008572,0.0947,89235.0,89233.0,0.01120661]
[1764687008770,0.0603494,89301.0,89208.0,0.00037962]
[1764687008771,0.0947,89262.0,89252.0,0.01120423]
[1764687008968,0.0947,89262.0,89249.0,0.0112046]
[1764687008969,0.0947,89262.0,89260.0,0.02249366]
[1764687008970,0.07372609,89261.0,89260.0,0.02249366]
[1764687009141,0.06252299,89253.0,89250.0,0.01120448]
[1764687009468,0.01120322,89260.0,89256.0,0.22407413]
[1764687009469,0.06252299,89259.0,89256.0,0.22407413]
[1764687009670,0.53064937,89297.0,89256.0,0.22407413]
[1764687009671,0.04658,89292.0,89262.0,0.24655317]
[1764687009874,0.04658,89292.0,89279.0,0.23521768]
[1764687009875,0.01824,89283.0,89279.0,0.23521768]
[1764687010239,0.04669384,89284.0,89276.0,0.01120121]
[1764687010442,0.01824,89282.0,89281.0,0.22401182]
[1764687010673,0.04669384,89284.0,89283.0,0.24650046]
[1764687010674,0.00011384,89284.0,89283.0,0.24650046]
[1764687010879,0.00011384,89284.0,89283.0,2.24650046]
[1764687011085,0.00011384,89284.0,89283.0,0.2240068]
[1764687011297,0.00011384,89284.0,89283.0,0.24650046]
[1764687011515,0.00011384,89284.0,89283.0,0.32179818]
[1764687011738,0.09481384,89284.0,89283.0,0.02249366]
[1764687011968,0.22401935,89278.0,89277.0,0.02249366]
[1764687012171,0.06252299,89283.0,89282.0,0.02249366]
[1764687012382,0.30476979,89283.0,89282.0,0.02249366]
[1764687012597,0.30476979,89283.0,89260.0,0.49408924]
[1764687012598,0.22402861,89275.0,89248.0,0.04429]
[1764687012799,0.22402861,89275.0,89246.0,0.22409696]
[1764687012800,0.17546299,89283.0,89266.0,0.02249366]
[1764687012801,0.01120234,89267.0,89266.0,0.02249366]
[1764687013002,0.01120234,89267.0,89253.0,0.0286627]
[1764687013003,0.23527566,89257.0,89256.0,0.02249366]
[1764687013226,0.23526822,89260.0,89247.0,0.02249366]
[1764687013227,0.22409514,89248.0,89247.0,0.02249366]
[1764687013426,0.24233514,89248.0,89247.0,0.02249366]
[1764687013701,0.39955813,89248.0,89247.0,0.02249366]
[1764687013945,0.06252299,89245.0,89244.0,0.02273634]
[1764687014610,0.06252299,89245.0,89244.0,0.24684104]
[1764687014814,0.0112046,89249.0,89244.0,0.24684104]
[1764687014815,0.0947,89274.0,89273.0,0.02249366]
[1764687015020,0.11305386,89274.0,89273.0,0.02249366]
[1764687015262,0.00011386,89274.0,89273.0,0.02249366]
[1764687016124,0.09481386,89274.0,89270.0,0.02249366]
[1764687016332,0.09481386,89274.0,89258.0,0.01120347]
[1764687016333,0.06252299,89266.0,89261.0,0.0112031]
[1764687016536,0.06252299,89266.0,89265.0,0.02249366]
[1764687016709,0.23523349,89273.0,89265.0,0.02249366]
[1764687016710,0.00011386,89274.0,89273.0,0.02249366]
[1764687016868,0.08087685,89274.0,89273.0,0.02249366]
[1764687017083,0.00011386,89274.0,89273.0,0.02810364]
[1764687019602,0.00011386,89274.0,89220.0,0.09878]
[1764687019603,0.2241021,89246.0,89220.0,0.09878]
[1764687019806,0.2241021,89246.0,89188.0,2.80304838]
[1764687019807,0.28662509,89246.0,89245.0,0.02249366]
[1764687020380,0.04658,89247.0,89245.0,0.02249366]
[1764687020583,0.04658,89247.0,89246.0,0.02249366]
[1764687020762,0.06252299,89251.0,89250.0,0.02249366]
[1764687020941,0.12030659,89257.0,89256.0,0.02249366]
[1764687021123,0.23529961,89248.0,89247.0,0.02249366]
[1764687021322,0.01120435,89251.0,89250.0,0.02249366]
[1764687021541,0.01120435,89251.0,89250.0,0.04717765]
[1764687021852,0.01120435,89251.0,89235.0,0.01120636]
[1764687021853,0.01120435,89251.0,89240.0,0.02249366]
[1764687021854,0.28663522,89241.0,89240.0,0.02249366]
[1764687022065,0.30487522,89241.0,89240.0,0.0001139]
[1764687022259,0.39957522,89241.0,89240.0,0.02260756]
[1764687022707,0.01120498,89246.0,89240.0,0.02260756]
[1764687022708,0.0947,89255.0,89252.0,0.02249366]
[1764687022832,0.0947,89255.0,89250.0,0.02249366]
[1764687022833,0.06252299,89251.0,89250.0,0.02249366]
[1764687023236,0.15722299,89251.0,89250.0,0.02249366]
[1764687023458,0.15722299,89251.0,89234.0,0.01120649]
[1764687023459,0.28663386,89242.0,89234.0,0.01120649]
[1764687023656,0.06252299,89242.0,89241.0,0.02249366]
[1764687023903,0.38133522,89241.0,89240.0,0.02260756]
[1764687024690,0.0947,89255.0,89243.0,0.01120536]
[1764687024887,0.04658,89267.0,89263.0,0.01120285]
[1764687025209,0.25349293,89266.0,89265.0,0.02249366]
[1764687025382,0.2706296,89267.0,89264.0,0.23525508]
[1764687025383,0.04658,89267.0,89264.0,0.23525508]
[1764687025588,0.04658,89267.0,89266.0,0.24654313]
[1764687025928,0.04658,89267.0,89265.0,0.22405198]
[1764687025929,0.27060694,89276.0,89273.0,0.02249366]
[1764687026104,0.36530577,89276.0,89275.0,0.02249366]
[1764687026306,0.36530577,89276.0,89275.0,0.04826731]
[1764687026507,0.36530577,89276.0,89184.0,0.23791191]
[1764687026508,0.15248121,89276.0,89270.0,0.02249366]